Cogmind - Beta 13 @@@ ROGUE MODE // 2024.04.23 @ 20:56:20 Player: SPACEGOAT Result: Destroyed by G-47 Trooper with Particle Gun Performance ------------- Evolutions (0) 0 Regions Visited (2) 400 Robots Destroyed (27) 135 Value Destroyed (539) 539 Prototype IDs (0) 0 Alien Tech Used (0) 0 Bonus (0) 0 TOTAL SCORE: 1074 Bonus ------- None Cogmind --------- Core Integrity 0/250 Matter 261/300 Energy 125/125 System Corruption 5% Temperature Cool (27) Movement Treading (240) Ox1 Location -10/Mines Parts ------- > --- POWER (1) -------- Light Ion Engine > --- PROPULSION (2) --- Light Treads > --- UTILITY (2) ------ Large Storage Unit Targeting Computer > --- WEAPON (2) ------- Light Assault Rifle Light Assault Rifle > --- INVENTORY (15) --- Heat Sink Small Matter Pod (50) Medium Matter Pod (0) Medium Matter Pod (100) Structural Scanner Signal Interpreter Terrain Scan Processor ECM Suite Light Armor Plating Light Assault Rifle Light Assault Rifle Light Assault Rifle Mining Laser Peak State ------------ > --- POWER ------------ Ion Engine > --- PROPULSION ------- Light Treads Light Treads > --- UTILITY ---------- Large Storage Unit Improved Terrain Scanner > --- WEAPON ----------- Small Laser Beam Cannon > --- INVENTORY -------- Light Ion Engine Light Treads Light Treads Heat Sink Small Matter Pod Medium Matter Pod Structural Scanner Signal Interpreter Terrain Scan Processor [Rating: 10] Favorites ----------- Power Ion Engine Engine Ion Engine Propulsion Light Treads Treads Light Treads Utility Large Storage Unit Device Improved Terrain Scanner Storage Large Storage Unit Processor Targeting Computer Weapon Light Assault Rifle Energy Gun Small Laser Energy Cannon Beam Cannon Ballistic Gun Light Assault Rifle Special Weapon Mining Laser Build | -11 -10 -10 ------- Run | Yrd Mat Min Slots Evolved . | . . . Power . | . . . Propulsion . | . . . Utility . | . . . Weapon . | . . . Parts Attached 26 | 7 19 . Power 4 | 1 3 . Engine 4 | 1 3 . Core . | . . . Reactor . | . . . Propulsion 7 | 2 5 . Treads 7 | 2 5 . Leg . | . . . Wheel . | . . . Hover . | . . . Flight . | . . . Utility 5 | 2 3 . Device 2 | 1 1 . Storage 2 | 1 1 . Processor 1 | . 1 . Hackware . | . . . Protection . | . . . Artifact . | . . . Weapon 10 | 2 8 . Energy Gun 5 | 1 4 . Energy Cannon 1 | . 1 . Ballistic Gun 3 | 1 2 . Ballistic Cannon . | . . . Launcher . | . . . Special Weapon 1 | . 1 . Impact Weapon . | . . . Slashing Weapon . | . . . Piercing Weapon . | . . . Special Melee Weapon . | . . . Unidentified Prototypes . | . . . Parts Lost 11 | . 10 1 Power 3 | . 3 . Propulsion 4 | . 3 1 Utility 1 | . 1 . Weapon 3 | . 3 . Highest Loss Streak 4 | . 4 1 To Critical Strikes . | . . . Average Slot Usage (%) 87 | . 86 100 Engine 12 | . 12 14 Treads 27 | . 27 28 Device 8 | . 9 . Storage 14 | . 14 14 Processor 4 | . 3 14 Energy Gun 7 | . 8 . Energy Cannon 5 | . 5 . Ballistic Gun 5 | . 4 28 Naked Turns . | . . . Heaviest Build 30 | 11 30 25 Greatest Support 40 | 40 40 40 Greatest Overweight (x) 1 | . 1 . Average Overweight (x) . | . . . Largest Inventory Capacity 15 | 8 15 15 Average Capacity 11 | 7 12 15 Most Carried 13 | 6 13 13 Average Carried 7 | 2 8 13 Final Capacity 15 | 8 15 15 Final Carried 13 | 6 13 13 Class Distribution -------------------- 100% | Mutant Dominant Class ---------------- Mutant | -10/Materials Mutant | -10/Mines Resources | -11 -10 -10 ----------- Run | Yrd Mat Min Matter Collected 486 | 297 189 . Remotely . | . . . Salvage Created 770 | 161 609 . Parts 56 | 14 42 . Haulers Intercepted . | . . . Recyclers Shooed 2 | 1 1 . Parts Field Recycled . | . . . Retrieved Matter . | . . . Parts Self-Destructed . | . . . Prevented . | . . . Kills | -11 -10 -10 ------- Run | Yrd Mat Min Combat Hostiles Destroyed 14 | . 14 . Melee 1 | . 1 . Guns 4 | . 4 . Cannons 9 | . 9 . Classes Destroyed 7 | 3 4 . Worker 4 | 2 2 . Builder 3 | . 3 . Tunneler 4 | 3 1 . Recycler 1 | 1 . . Watcher 1 | . 1 . Swarmer 3 | . 3 . Grunt 11 | . 11 . Best Kill Streak 5 | 4 5 . Combat Bots Only 5 | . 5 . Max Kills in Single Turn 1 | 1 1 . Gunslinging . | . . . Exploded . | . . . Melee 1 | . 1 . Uniques/NPCs Destroyed . | . . . Combat | -11 -10 -10 -------- Run | Yrd Mat Min Hostile Shots Fired 130 | . 121 9 Missed 24 | . 23 1 Damage Taken 1515 | . 1392 123 Core 255 | . 225 30 Absorbed by Shields . | . . . Core Remaining (%) 100 | 100 . . Volleys Fired 101 | 23 71 7 Largest 2 | 2 2 2 Hottest 100 | 60 100 40 Shots Fired 153 | 41 97 15 Gun 115 | 41 59 15 Cannon 34 | . 34 . Launcher . | . . . Special 4 | . 4 . Kinetic 41 | 23 3 15 Thermal 98 | 18 80 . Explosive . | . . . Electromagnetic 14 | . 14 . Robot Hit Streak 12 | 12 12 10 Robot Miss Streak 11 | 1 11 1 Penetration Max . | . . . Secondary Targets . | . . . Shots Hit Robots 97 | 30 55 12 Core Hits 44 | 10 31 3 Critical Kills . | . . . Critical Parts Destroyed . | . . . Critical Strikes . | . . . Melee Attacks . | . . . Impact . | . . . Slashing . | . . . Piercing . | . . . Sneak Attacks . | . . . Combat Hostiles . | . . . Follow-up Attacks . | . . . Damage Inflicted 1317 | 290 935 92 Guns 735 | 290 353 92 Cannons 404 | . 404 . Explosions 98 | . 98 . Melee . | . . . Ramming 56 | . 56 . Kinetic 249 | 135 22 92 Thermal 920 | 155 765 . Explosive . | . . . Electromagnetic 92 | . 92 . Impact . | . . . Slashing . | . . . Piercing . | . . . Highest Corruption 5 | . 5 5 Average Corruption 5 | . 5 5 Corruption Purged . | . . . Corruption Blocked . | . . . Effects 33 | . 31 2 Message Errors 6 | . 6 . Matter Fused 7 | . 7 . Heat Flow Errors 5 | . 4 1 Energy Discharges 4 | . 4 . Parts Rejected 2 | . 2 . Data Loss (minor) 1 | . 1 . Data Loss (major) 2 | . 2 . Misfires 5 | . 4 1 Alerts 1 | . 1 . Overload Shots . | . . . Overflow Damage 27 | . 27 . Projectiles 10 | . 10 . Explosions 17 | . 17 . Melee . | . . . Knockbacks 1 | . 1 . Impact 1 | . 1 . Kinetic . | . . . Secondary . | . . . Self-Inflicted Damage 95 | . 95 . Shots 1 | . 1 . Rammed 21 | . 21 . Targets Rammed 23 | . 23 . Kicked . | . . . Crushed 2 | . 2 . Highest Temperature 324 | 40 324 278 Average Temperature 97 | 19 112 89 Received Heat Transfer 579 | . 507 72 Effects 1 | . 1 . Energy Bleed 1 | . 1 . Siege Activations . | . . . Robots Corrupted . | . . . Combat Hostiles . | . . . Parts Fried 1 | . 1 . Impact Corruptions . | . . . Robots Melted . | . . . Combat Hostiles . | . . . Parts Melted 1 | . 1 . Heat Transferred 1851 | 350 1501 . Parts Sabotaged . | . . . Parts Stolen . | . . . Parts Stripped . | . . . Power Chain Reactions . | . . . Alert | -11 -10 -10 ------- Run | Yrd Mat Min Peak Influence 300 | 30 300 30 Initial 30 | . 19 30 Average 111 | 13 129 29 Maximum Alert Level 1 | . 1 . Low Security (%) 79 | 100 75 100 Level 1 20 | . 24 . Level 2 . | . . . Level 3 . | . . . Level 4 . | . . . Level 5 . | . . . High Security . | . . . Max Security . | . . . Squads Dispatched 2 | . 2 . Investigation 2 | . 2 . Extermination . | . . . Reinforcement . | . . . Assault . | . . . Garrison . | . . . Intercept . | . . . Searches Triggered . | . . . Construction Impeded . | . . . Haulers Reinforced . | . . . Active Scanning Responses . | . . . Cargo Convoy Interrupts . | . . . Stealth | -11 -10 -10 --------- Run | Yrd Mat Min Distress Signals 3 | . 3 . Communications Jammed . | . . . Distress Signals . | . . . Times Spotted 24 | . 22 2 Peak Tracking Total 5 | . 5 2 Tactical Retreats 2 | . 2 . Traps | -11 -10 -10 ------- Run | Yrd Mat Min Traps Triggered 2 | . 2 . Indirectly . | . . . Trap Hack Attempts . | . . . Triggered . | . . . Disarmed . | . . . Reprogrammed . | . . . Reused . | . . . Traps Extracted . | . . . Installed . | . . . Triggered . | . . . Machines | -11 -10 -10 ---------- Run | Yrd Mat Min Machines Disabled 4 | . 4 . Max in Single Turn 2 | . 2 . Machines Repaired . | . . . Machines Dismantled . | . . . Machines Sabotaged . | . . . Overloaded Fab Kills . | . . . Hacking | -11 -10 -10 --------- Run | Yrd Mat Min Machines Accessed 6 | . 6 . Terminals 6 | . 6 . Fabricators . | . . . Repair Stations . | . . . Recycling Units . | . . . Scanalyzers . | . . . Garrison Access . | . . . Total Hacks 14 | . 14 . Successful 5 | . 5 . Failed 9 | . 9 . Catastrophic 1 | . 1 . Database Lockouts . | . . . Manual 6 | . 6 . Terminals 14 | . 14 . Fabricators . | . . . Repair Stations . | . . . Recycling Units . | . . . Scanalyzers . | . . . Garrison Access . | . . . Terminal Hacks 5 | . 5 . Robot Analysis 1 | . 1 . Zone Layout 4 | . 4 . Fabricator Hacks . | . . . Repair Station Hacks . | . . . Recycling Unit Hacks . | . . . Scanalyzer . | . . . Garrison Access Hacks . | . . . Unauthorized Hacks . | . . . Terminals . | . . . Fabricators . | . . . Repair Stations . | . . . Recycling Units . | . . . Scanalyzers . | . . . Garrison Access . | . . . Data Cores Recovered . | . . . Used . | . . . Hacking Detections 3 | . 3 . Full Trace Events 1 | . 1 . Feedback Events . | . . . Feedback Blocked . | . . . Robot Schematics Acquired . | . . . Robots Built . | . . . Authchips . | . . . Time . | . . . Total Robot Build Rating . | . . . Part Schematics Acquired . | . . . Parts Built . | . . . Authchips . | . . . Time . | . . . Total Part Build Rating . | . . . Parts Repaired . | . . . Time . | . . . Parts Recycled . | . . . Recycled Matter . | . . . Retrieved Matter . | . . . Retrieved Components . | . . . Parts Scanalyzed . | . . . Part Schematics Acquired . | . . . Parts Damaged . | . . . Bothacking | -11 -10 -10 ------------ Run | Yrd Mat Min Used RIF Installer . | . . . Robots Hacked . | . . . Non-combat . | . . . Combat . | . . . Robot Hacks Applied . | . . . Relay Couplers Released . | . . . Fabnet Peak Effective % . | . . . Robots Rewired . | . . . Allies Hacked . | . . . Hacks Repelled . | . . . Allies | -11 -10 -10 -------- Run | Yrd Mat Min Total Allies . | . . . Largest Group . | . . . Highest-Rated Group . | . . . Highest-Rated Ally . | . . . Total Orders . | . . . Ally Attacks . | . . . Total Damage . | . . . Kills . | . . . Allies Corrupted . | . . . Allies Melted . | . . . Intel | -11 -10 -10 ------- Run | Yrd Mat Min Robot Analysis Total 1 | . 1 . Derelict Logs Recovered 1 | . . 1 Drone Launches . | . . . Drone Recoveries . | . . . Exploration | -11 -10 -10 ------------- Run | Yrd Mat Min Turns Passed 1617 | 202 1346 69 Spaces Moved 776 | 79 668 29 Core 1 | 1 . . Treads 775 | 78 668 29 Legs . | . . . Wheels . | . . . Hover . | . . . Flight . | . . . Fastest Speed 50 | 50 160 160 Average Speed 160 | 158 160 160 Slowest Speed 240 | 160 240 160 Overloaded Moves . | . . . Propulsion Burnouts . | . . . Robots Hopped . | . . . Cave-ins Triggered 1 | . 1 . Exploration Rate (%) 32 | 6 79 11 Regions Visited 2 Branch Regions 1 Pre-discovered Areas 1 | . . 1 Known Exits Taken . | . . . Unknown Exits Taken 2 | 1 1 . Scrap Searched . | . . . Spaces Dug 2 | . 2 . Terrain Destroyed 27 | . 27 . Melee . | . . . Projectile 2 | . 2 . AOE 25 | . 25 . Terrain Rammed . | . . . Walls Destroyed . | . . . Machines Disabled . | . . . Actions | -11 -10 -10 --------- Run | Yrd Mat Min Total 984 | 116 827 41 Wait 20 | 1 14 5 Move 774 | 78 667 29 Hop . | . . . Pick Up 30 | 7 23 . Fast Attach 13 | 6 7 . Attach 10 | 1 9 . Detach . | . . . Swap 3 | . 3 . Drop 10 | . 10 . Fire 101 | 23 71 7 Melee . | . . . Ram . | . . . Kick . | . . . Crush 23 | . 23 . Escape Stasis . | . . . Rewire . | . . . Trap . | . . . Miscellaneous . | . . . Route ------- -11/Scrapyard -10/Materials (discovered 3 exits: [*Mat x2] / [*Min]) -10/Mines History --------- Turn | Location | Event 8 | -11/Scrapyard | Discovered new exit (range 15) 203 | -11/Scrapyard | Entered Materials 302 | -10/Materials | Build established: Mutant 350 | -10/Materials | Discovered new exit (range 12) 358 | -10/Materials | Crushed by falling debris 651 | -10/Materials | Core integrity fell below 50% 1004 | -10/Materials | Lost 3 parts (1p1u1w) 1162 | -10/Materials | Core integrity fell below 20% 1273 | -10/Materials | Lost 4 parts (1p2n1w) 1406 | -10/Materials | Discovered new exit (range 7) 1526 | -10/Materials | Discovered new exit (range 6) 1549 | -10/Materials | Entered Mines 1564 | -10/Mines | Learned location of Zion (-6) 1618 | -10/Mines | Destroyed by G-47 Trooper with Particle Gun Last Messages --------------- System corrupted: Heat flow error (+105). GPRTBKPS>4KCRXGOI#B2EYJO:QRA# Acquired Lgt. Assault Rifle. Acquired Lgt. Armor Plating. Acquired Lgt. Assault Rifle. Acquired Med. Matter Pod. EXIT=FOUND System corrupted: Matter fused (-9). Acquired Mining Laser. LOCATION=UNKNOWN GOAL=ESCAPE K-01 Serf collects debris. Acquired derelict log, extracted data. World map updated: -6/Zion. System corrupted: FCS attempts to trigger Lgt. Assault Rifle. System corrupted: Lgt. Assault Rifle misfires. K-01 Serf collects debris. System corrupted: Heat flow error (+298). Lgt. Treads destroyed. Map ----- +----------------------------------------------------+ | ?????????????????????????????????????????????????? | | ?????????????????????????????????????????????????? | | ?????????????????????????????????????????????????? | | ?????????????????????????????????????????????????? | | ?????????????????????????????????????????????????? | | ?????????????????????????????????????????????????? | | ?????????????????????????????????????????????????? | | ?????????????????????????????????????????????????? | | ?????????????????############????????????????????? | | ?????????????????# #######??????????????? | | ?????????????????# """ #??????????????? | | ???????????????? """ ##### #??????????????? | | ?????????????????# """ #??## ###### #??????? | | ?????????????????# #??# #??????? | | ?????????????????############??# #??????? | | ????????????????????????????#### #########??????? | | ???????????????????????????## ##?????????????? | | ??????????????????????????## #?????????????? | | ?????????????????????????## #?????????????? | | ?????????????????????????# #?????????????? | | ?????????????????????????# #?????????????? | | ?????????????????????????# ### #?????????????? | | ?????????????????????????## ##?? ???????????? | | ??????????????????????????## #??? ## """?????????? | | ???????????????????????##### #### #? """?????????? | | ???????????????????????# @ #??"""?????????? | | ???????????????????????#g##########??? ??????????? | | ???????????????????????#g#?????????????"?????????? | | ???????????????????????# #???????????????????????? | | ???????????????????????# #???????????????????????? | | ???????????????????????# #???????????????????????? | | ???????????????????????# #???????????????????????? | | ???????????????????????# #???????????????????????? | | ???????????????????????# #???????????????????????? | | ???????????????????????# #???????????????????????? | | ???????????????????????? ????????????????????????? | | ???????????????????????? ????????????????????????? | | ???????????????????????? ????????????????????????? | | ???????????????????????? ????????????????????????? | | ???????????????????????? ????????????????????????? | | ???????????????????????? ????????????????????????? | | ???????????????????????? ????????????????????????? | | ?????????????????????????????????????????????????? | | ?????????????????????????????????????????????????? | | ?????????????????????????????????????????????????? | | ?????????????????????????????????????????????????? | | ?????????????????????????????????????????????????? | | ?????????????????????????????????????????????????? | | ?????????????????????????????????????????????????? | | ?????????????????????????????????????????????????? | +----------------------------------------------------+ Best States ------------- Heat Dissipation 25 Energy Generation 10 Energy Capacity 250 Matter Stores 300 Matter Capacity 300 Sight Range 16 Terrain Scan Range 16 Terrain Scan Density 10 Evasion (%) 40 Targeting Accuracy 5 Recoil Reduction 2 Item Schematics ----------------- None Robot Schematics ------------------ None Fabricated ------------ Nothing Alien Tech Used ----------------- None Achievements -------------- None Challenges ------------ None Game ------ Seed BackupMomentumBank Manual? 0 Play Time 00:18:08 Cumulative 24.8 hours Start 2024.04.23 @ 20:38:00 End 2024.04.23 @ 20:56:20 Sessions 1 Manual Loads 0 Difficulty Rogue Special Mode None Game No. 21 Rogue 21 Adventurer 0 Explorer 0 Win Type - Total 0 Types 0/0/0/0/0/0/0/0/0 Lore% 19 Gallery% 26 Achievement% 17 Wizard Run 0 Options --------- Layout 1 ASCII 0 Keyboard 0 Movement Mouse Keybinds 0 Fullscreen 1 Font 24/Smallcaps Map View 50x35 Zoom Use 0% Tactical HUD 0 Map Filters NONE Filters NONE Steam 1 RUN: 61d18068-9c9b-49ce-a8eb-63a3a88de7eb